bitfinex-derivatives/quotes_ETHF0:USTF0_20241230
["timestamp","ask_amount","ask_price","bid_price","bid_amount"]
[1735600241707,2.25711429,3352.3,3351.6,3.2078]
[1735600241919,0.2989,3351.8,3351.7,0.2989]
[1735600243018,2.55600429,3351.9,3351.8,0.29889]
[1735600243919,3.2078,3352.1,3351.5,42.4947]
[1735600244110,3.2078,3352.1,3352.0,0.29887]
[1735600244111,3.50667,3352.1,3352.0,0.29887]
[1735600244312,3.2078,3352.1,3351.5,42.4947]
[1735600244516,2.25711429,3351.9,3351.5,42.4947]
[1735600244716,2.55600429,3351.9,3351.8,0.29889]
[1735600245818,0.2989,3351.8,3351.6,0.29891]
[1735600246120,0.29893,3351.4,3351.3,3.2078]
[1735600246517,0.29893,3351.4,3351.3,40.8]
[1735600246518,3.50673,3351.4,3351.3,40.8]
[1735600246720,0.29895,3351.1,3351.0,2.02476]
[1735600247122,3.2078,3351.4,3351.0,42.5258]
[1735600247316,0.29895,3351.2,3351.1,0.29895]
[1735600248417,3.2078,3351.4,3351.1,0.29895]
[1735600248622,0.29894,3351.3,3351.2,0.29894]
[1735600248923,3.50673,3351.4,3351.3,0.29894]
[1735600249518,3.21908424,3351.8,3351.0,42.5258]
[1735600249717,2.25711429,3351.6,3351.0,42.5258]
[1735600249918,2.55602429,3351.6,3351.5,0.29892]
[1735600250117,2.25711429,3351.6,3351.5,0.29892]
[1735600250317,2.25711429,3351.6,3351.0,42.5258]
[1735600250617,2.25711429,3351.6,3351.5,0.29892]
[1735600251122,2.55602429,3351.6,3351.5,0.29892]
[1735600253027,0.29892,3351.5,3351.4,0.29892]
[1735600253324,0.29892,3351.5,3351.0,42.5258]
[1735600253325,0.29895,3351.2,3351.1,0.29895]
[1735600257028,0.29895,3351.1,3351.0,2.02476]
[1735600257834,0.29895,3351.2,3351.0,2.02476]
[1735600258229,2.55605429,3351.3,3351.1,0.29895]
[1735600258535,0.29895,3351.2,3351.1,0.29895]
[1735600258719,2.55605429,3351.3,3351.0,1.7258]
[1735600258925,0.29894,3351.3,3351.0,1.7258]
[1735600259125,0.29894,3351.3,3351.1,0.29895]
[1735600259426,0.29894,3351.3,3351.2,0.29895]
[1735600259724,3.2078,3351.5,3351.4,0.29893]
[1735600261034,0.29891,3351.6,3351.5,0.29892]
[1735600261035,2.55602429,3351.6,3351.5,0.29892]
[1735600262329,2.25711429,3351.6,3351.0,2.47321]
[1735600263030,2.55602429,3351.6,3351.5,0.29892]
[1735600263332,2.25711429,3351.6,3351.0,1.7258]
[1735600263530,3.2078,3351.5,3351.0,1.7258]
[1735600264032,0.29895,3351.2,3351.1,0.29895]
[1735600265931,0.29894,3351.3,3351.2,0.29894]
[1735600266822,3.2078,3351.5,3351.0,1.17746]
[1735600266823,0.29895,3351.1,3351.0,1.17746]
[1735600267231,3.2078,3351.5,3351.0,1.17746]
[1735600267232,0.29893,3351.4,3351.3,0.29893]
[1735600267426,0.29894,3351.3,3351.2,0.29894]
[1735600268532,0.29893,3351.4,3351.3,0.29893]
[1735600269933,3.2078,3351.5,3351.2,0.29894]
[1735600269934,0.29894,3351.3,3351.2,0.29894]
[1735600270133,0.29895,3351.2,3351.1,0.29895]
[1735600270331,3.2078,3351.5,3351.0,0.8785]
[1735600270537,0.29895,3351.2,3351.1,0.29895]
[1735600272837,3.2078,3351.5,3351.0,0.8785]
[1735600272838,0.29895,3351.1,3351.0,0.8785]
[1735600273633,0.29895,3351.1,3351.0,1.17746]
[1735600274733,0.29894,3351.3,3351.0,0.8785]
[1735600275135,2.32658424,3351.8,3351.4,0.29893]
[1735600275434,2.32658424,3351.8,3351.7,0.2989]
[1735600276034,3.2078,3351.9,3351.8,0.29889]
[1735600276430,5.46491429,3351.9,3351.5,4.1176]
[1735600276734,0.8644,3351.8,3351.6,0.29891]
[1735600276942,0.8644,3351.8,3351.7,0.2989]
[1735600277137,3.2078,3351.9,3351.8,0.29889]
[1735600279339,2.32658424,3352.3,3352.2,0.29886]
[1735600279843,0.93768424,3352.3,3352.2,0.29886]
[1735600280045,3.51053392,3352.5,3352.2,5.0]
[1735600280243,3.51053392,3352.5,3352.4,3.50664]
[1735600280451,2.34468501,3352.8,3352.5,0.29883]
[1735600280743,2.34468501,3352.8,3352.7,0.29881]
[1735600281742,0.29878,3353.1,3352.5,4.67189641]
[1735600281939,0.29878,3353.1,3352.8,0.2988]
[1735600282747,0.29878,3353.1,3352.9,0.29879]
[1735600282946,5.46491429,3353.2,3352.6,0.8441]
[1735600283342,0.29878,3353.1,3352.6,0.8441]
[1735600283543,0.29878,3353.1,3352.9,0.29879]
[1735600283939,5.46491429,3353.2,3352.6,0.8441]
[1735600284144,3.2078,3352.8,3352.4,4.67189641]
[1735600284344,0.29882,3352.7,3352.5,0.29882]
[1735600284547,2.05272,3352.7,3352.5,0.29882]
[1735600285649,1.7539,3352.7,3352.2,4.67189641]
[1735600285847,1.7539,3352.7,3352.6,0.29882]
[1735600286151,3.2078,3352.8,3352.7,0.29881]
[1735600286849,3.2078,3352.8,3352.3,0.74712]
[1735600286850,5.76368429,3353.2,3352.9,0.29879]
[1735600287249,5.76368429,3353.2,3352.2,3.2078]
[1735600287446,3.2078,3353.2,3353.1,0.29878]
[1735600287952,5.9473522,3353.6,3352.8,0.74701]
[1735600287953,3.2078,3353.6,3352.8,0.74701]
[1735600288352,3.51053392,3353.8,3353.5,0.29874]
[1735600288649,3.51053392,3353.8,3353.7,0.29872]
[1735600289249,1.747,3353.9,3353.7,0.29872]
[1735600289452,2.0457,3353.9,3353.7,0.29872]
[1735600289852,1.747,3353.9,3353.4,1.7084]
[1735600290051,2.0457,3353.9,3353.7,0.29872]
[1735600290252,1.747,3353.9,3353.8,0.29871]
[1735600290947,0.29872,3353.8,3353.6,0.29872]
[1735600291453,1.747,3353.9,3353.7,0.29872]
[1735600291650,2.04571,3353.9,3353.8,0.29871]
[1735600291855,1.747,3353.9,3353.8,0.29871]
[1735600293155,2.0457,3353.9,3353.8,0.29871]
[1735600293950,1.747,3353.9,3353.8,0.29871]
[1735600294157,0.9237,3354.3,3353.4,2.45526]
[1735600294158,2.05977,3354.3,3353.7,3.2078]
[1735600294458,2.05977,3354.3,3354.2,0.29868]
[1735600294459,1.7611,3354.3,3354.2,0.29868]
[1735600294858,6.71833392,3355.0,3354.1,3.2078]
[1735600295154,6.71833392,3355.0,3354.9,0.29862]
[1735600295358,3.50641,3355.0,3354.9,0.29862]
[1735600295558,3.2078,3355.0,3354.9,0.29862]
[1735600296358,0.29859,3355.2,3354.5,0.74663]
[1735600296557,0.29859,3355.2,3355.0,0.2986]
[1735600296863,0.29859,3355.3,3354.5,3.95443]
[1735600297363,0.29858,3355.3,3355.1,0.29859]
[1735600297564,6.38061429,3355.4,3355.3,0.29858]
[1735600297759,6.38061429,3355.4,3355.2,0.29858]
[1735600298160,6.38061429,3355.4,3355.3,0.29858]
[1735600298670,6.38061429,3355.4,3355.2,0.29858]
[1735600300154,6.38061429,3355.4,3354.5,3.2078]
[1735600300358,2.25711429,3354.8,3353.9,3.2078]
[1735600300565,1.8069,3354.7,3354.2,0.29868]
[1735600300766,2.10553,3354.7,3354.2,0.29868]
[1735600301263,1.8069,3354.7,3353.9,3.2078]
[1735600301568,1.8069,3354.7,3354.6,0.29864]
[1735600301972,1.8069,3354.7,3354.0,0.74675]
[1735600302274,1.8069,3354.7,3354.4,0.29866]
[1735600302570,1.8069,3354.7,3354.6,0.29864]
[1735600302758,1.8069,3354.7,3354.5,0.29865]
[1735600303165,1.8069,3354.7,3354.4,0.29865]
[1735600303366,0.29866,3354.5,3354.0,0.2987]
[1735600303563,0.29866,3354.5,3354.1,0.29868]
[1735600303756,2.7774,3354.7,3354.1,40.8]
[1735600303968,3.07604,3354.7,3354.5,0.29865]
[1735600304362,2.10554,3354.7,3354.5,0.29865]
[1735600304863,1.8069,3354.7,3354.1,40.8]
[1735600305063,1.8069,3354.7,3354.6,0.29864]
[1735600305860,3.2078,3355.0,3354.3,3.2078]
[1735600306170,3.2078,3355.0,3354.9,0.29862]
[1735600306367,2.55566429,3355.7,3355.0,0.74652]
[1735600306368,0.29855,3355.7,3355.0,0.74652]
[1735600306670,0.29855,3355.7,3355.6,0.29855]
[1735600306871,2.18653,3355.9,3355.7,0.29854]
[1735600307166,2.18653,3355.9,3355.5,0.29856]
[1735600307167,1.888,3355.9,3355.5,0.29856]
[1735600307368,0.29855,3355.6,3355.5,0.29856]
[1735600307569,0.29855,3355.6,3355.4,0.29857]
[1735600308077,1.888,3355.9,3355.2,41.722]
[1735600308368,0.29855,3355.7,3355.5,0.29856]
[1735600309069,1.888,3355.9,3355.2,41.722]
[1735600309372,0.29855,3355.7,3355.5,0.29856]
[1735600309668,0.29854,3355.8,3355.2,41.722]
[1735600309868,0.29854,3355.8,3355.6,0.29855]
[1735600310069,0.29854,3355.8,3355.7,0.29854]
[1735600310468,1.888,3355.9,3355.2,42.46848]
[1735600310667,1.888,3355.9,3355.8,0.29854]
[1735600310868,2.18653,3355.9,3355.8,0.29854]
[1735600311069,1.888,3355.9,3355.8,0.29854]
[1735600311270,3.2078,3356.2,3355.2,45.61049429]
[1735600311271,3.2078,3356.2,3356.0,0.29851]
[1735600311470,3.2078,3356.2,3355.4,0.74643]
[1735600311471,0.29851,3356.1,3355.9,0.29852]
[1735600312064,3.2078,3356.2,3355.2,45.61049429]
[1735600312369,3.2078,3356.2,3355.2,43.35338]
[1735600312370,0.29854,3355.8,3355.2,43.35338]
[1735600312569,0.29856,3355.6,3355.4,0.29857]
[1735600313271,0.29856,3355.6,3355.5,0.29856]
[1735600313474,1.8586,3355.7,3355.6,0.29855]
[1735600313770,3.2078,3356.2,3355.3,0.74646]
[1735600313971,1.26951,3356.1,3355.9,0.29852]
[1735600314370,0.971,3356.1,3355.2,4.1298]
[1735600314572,0.29853,3355.9,3355.7,0.29854]
[1735600315177,3.22811429,3356.1,3355.2,4.1298]
[1735600315369,0.29852,3356.0,3355.9,0.29852]
[1735600315965,1.26951,3356.1,3355.9,0.29852]
[1735600316671,1.26951,3356.1,3355.5,0.29856]
[1735600316872,1.26951,3356.1,3355.9,0.29852]
[1735600317070,0.971,3356.1,3355.9,0.29852]
[1735600317270,0.29852,3356.0,3355.8,0.29853]
[1735600317472,0.971,3356.1,3355.8,0.29853]
[1735600317671,0.29854,3355.8,3355.4,0.8901]
[1735600317876,0.29853,3355.9,3355.4,0.8901]
[1735600318077,0.29853,3355.9,3355.7,0.29854]
[1735600318274,3.22811429,3356.1,3355.2,4.1298]
[1735600318475,0.29852,3356.0,3355.8,0.29853]
[1735600318978,0.29853,3355.9,3355.7,0.29854]
[1735600319580,3.22811429,3356.1,3355.2,4.1298]
[1735600319780,3.22811429,3356.1,3355.5,0.29856]
[1735600319781,0.29856,3355.6,3355.5,0.29856]
[1735600320383,0.29855,3355.7,3355.5,0.29856]
[1735600320578,0.29855,3355.7,3355.6,0.29855]
[1735600320778,0.29855,3355.7,3355.2,4.1298]
[1735600320779,0.29856,3355.6,3355.5,0.29856]
[1735600321081,0.29856,3355.6,3355.0,0.8901]
[1735600321082,0.2986,3355.1,3355.0,0.2986]
[1735600321384,6.73891429,3355.8,3355.3,0.29858]
[1735600321385,3.50637,3355.4,3355.3,0.29858]
[1735600321882,3.50637,3355.4,3355.2,0.29858]
[1735600322183,0.29858,3355.3,3355.2,0.29858]
[1735600323281,4.1807,3355.4,3354.9,40.8]
[1735600323484,3.2078,3355.8,3354.9,40.8]
[1735600323681,0.29856,3355.6,3355.5,0.29856]
[1735600324281,0.29856,3355.6,3355.1,0.9228]
[1735600324282,3.2078,3355.8,3355.1,0.9228]
[1735600324487,0.29857,3355.5,3355.1,0.9228]
[1735600324693,0.29857,3355.5,3355.4,0.29857]
[1735600325188,0.29856,3355.6,3355.5,0.29856]
[1735600325489,3.2078,3355.8,3355.7,0.29854]
[1735600326190,3.2078,3355.8,3355.7,41.09854]
[1735600327792,3.2078,3355.8,3355.7,0.29854]
[1735600330185,3.2078,3355.8,3355.7,41.09854]
[1735600333996,3.2078,3355.8,3355.6,0.29855]
[1735600333997,3.50634,3355.8,3355.6,0.29855]
[1735600334190,0.9492,3355.7,3355.3,4.67189641]
[1735600334396,0.29857,3355.4,3355.3,4.97047641]
[1735600334596,0.29857,3355.4,3355.3,4.67189641]
[1735600334890,5.76348429,3355.4,3355.3,0.19189641]
[1735600335189,0.29859,3355.2,3355.1,6.71462785]
[1735600335391,10.46491429,3355.4,3354.6,9.24093765]
[1735600335392,0.29863,3354.7,3354.6,9.24093765]
[1735600336594,2.55574429,3354.7,3354.6,9.24093765]
[1735600336783,2.55574429,3354.7,3354.2,0.8953]
[1735600336784,2.25711429,3354.7,3354.2,0.8953]
[1735600336992,3.50647,3354.4,3354.2,0.8953]
[1735600337191,3.50647,3354.4,3354.0,41.6773]
[1735600337192,3.2078,3354.4,3354.0,41.6773]
[1735600337397,0.29869,3354.1,3354.0,40.8]
[1735600337688,0.29872,3353.7,3353.6,10.13623765]
[1735600338093,0.29872,3353.8,3353.6,41.99403]
[1735600338694,3.2078,3354.0,3353.6,41.99403]
[1735600338894,0.29871,3353.9,3353.6,41.99403]
[1735600339693,3.2078,3354.0,3353.9,0.2987]
[1735600339996,0.29865,3354.6,3353.9,0.2987]
[1735600340192,0.29865,3354.6,3353.8,6.21170429]
[1735600340193,5.0457,3354.8,3354.3,0.29866]
[1735600340394,0.29866,3354.5,3354.4,40.8]
[1735600342596,0.29863,3354.7,3354.5,0.29865]
[1735600343296,0.29863,3354.7,3354.5,1.18745]
[1735600343599,3.50643,3354.8,3354.6,0.29864]
[1735600343798,4.0949,3355.3,3354.5,0.8888]
[1735600344495,3.2078,3355.3,3355.2,0.29859]
[1735600344701,3.2078,3355.3,3354.9,3.2078]
[1735600344702,1.25496,3355.6,3355.4,0.29856]
[1735600344899,0.29858,3355.4,3355.2,0.29859]
[1735600345202,3.21351429,3355.6,3355.0,0.8776]
[1735600345398,3.21351429,3355.6,3354.9,3.2078]
[1735600345399,3.2078,3355.4,3354.9,3.2078]
[1735600345599,0.2986,3355.1,3354.9,3.50642]
[1735600346997,3.2078,3355.4,3354.9,3.2078]
[1735600347198,0.29858,3355.3,3355.1,0.2986]
[1735600347700,3.2078,3355.4,3355.3,0.29858]
[1735600349201,0.29857,3355.5,3355.3,0.29858]
[1735600349508,0.29857,3355.4,3355.2,0.29858]
[1735600350295,0.29857,3355.5,3355.3,0.29858]
[1735600350502,3.2078,3355.8,3355.4,2.13337]
[1735600350703,0.29856,3355.5,3355.4,2.13337]
[1735600351298,0.29856,3355.5,3355.4,1.8348]
[1735600351599,0.29856,3355.5,3355.3,0.29857]
[1735600352296,0.29858,3355.4,3355.2,0.29858]
[1735600353706,0.29858,3355.4,3355.3,0.29858]
[1735600354496,0.29858,3355.4,3354.9,3.2078]
[1735600354497,3.2078,3355.4,3354.9,3.2078]
[1735600354696,3.2078,3355.0,3354.6,0.9255]
[1735600355005,0.29863,3354.7,3354.6,0.9255]
[1735600355205,0.29863,3354.7,3354.6,1.22414]
[1735600355398,0.29863,3354.8,3354.6,1.22414]
[1735600356097,0.29863,3354.8,3354.7,0.29863]
[1735600356297,0.29862,3354.9,3354.7,0.29863]
[1735600357499,3.2078,3355.0,3354.7,0.29863]
[1735600357902,0.29862,3354.9,3354.7,0.29863]
[1735600358901,3.2078,3355.0,3354.6,0.9255]
[1735600359109,3.2078,3355.0,3354.9,0.29862]
[1735600359512,5.46491429,3355.0,3354.4,40.8]
[1735600359808,0.29865,3354.5,3354.4,40.8]
[1735600360704,0.29865,3354.5,3354.4,41.09866]
[1735600361011,0.29864,3354.6,3354.4,41.09866]
[1735600361904,0.8953,3354.9,3354.4,40.8]
[1735600361905,2.25711429,3354.7,3354.4,40.8]
[1735600362114,0.29871,3353.9,3353.7,9.53965765]
[1735600362505,0.29871,3353.9,3353.8,40.8]
[1735600362805,0.2987,3353.9,3353.8,40.8]
[1735600363307,1.1921,3353.9,3353.8,40.8]
[1735600364405,3.2078,3354.1,3353.8,40.8]
[1735600364612,3.2078,3354.1,3354.0,0.29869]
[1735600364910,3.2078,3354.1,3353.8,40.8]
[1735600364911,3.2078,3354.1,3353.9,1.2398]
[1735600365112,0.29869,3354.1,3353.9,0.9411]
[1735600365312,0.29869,3354.1,3353.9,1.2398]
[1735600367104,5.0412,3354.5,3353.9,0.9411]
[1735600367307,0.29867,3354.3,3353.9,1.2398]
[1735600367510,5.0412,3354.5,3353.9,1.2398]
[1735600368010,5.0412,3354.5,3353.9,0.9411]
[1735600368309,0.29868,3354.2,3354.0,0.29869]
[1735600368502,0.29868,3354.2,3353.9,0.9411]
[1735600368503,4.41465,3354.5,3354.3,0.29867]
[1735600368701,4.41465,3354.5,3353.9,0.9411]
[1735600368702,4.116,3354.5,3353.9,0.9411]
[1735600368901,4.116,3354.5,3354.2,0.29868]
[1735600368902,1.57266,3354.4,3354.2,0.29868]
[1735600370409,0.29867,3354.3,3354.2,0.29868]
[1735600370707,1.274,3354.4,3354.3,0.29867]
[1735600371305,1.57266,3354.4,3354.3,0.29867]
[1735600371607,3.50645,3354.5,3354.4,0.29866]
[1735600372110,3.2078,3354.5,3353.9,0.9411]
[1735600372308,0.29867,3354.3,3354.2,0.29867]
[1735600372510,0.29867,3354.4,3354.3,0.29867]
[1735600373413,0.29867,3354.3,3354.2,0.29867]
[1735600374715,3.2078,3354.5,3353.9,0.9411]
[1735600374907,0.2987,3354.0,3353.9,1.2398]
[1735600375109,0.2987,3354.0,3353.9,0.9411]
[1735600376017,0.9098,3354.3,3353.5,0.8714]
[1735600376018,0.29873,3353.7,3353.5,0.8714]
[1735600376215,0.29875,3353.4,3353.3,10.19693765]
[1735600377714,4.1607,3353.7,3353.3,10.19693765]
[1735600377715,3.2078,3353.7,3353.6,0.29873]
[1735600378317,3.2078,3353.7,3353.6,41.09873]
[1735600378615,3.80920392,3354.4,3353.7,0.74681]
[1735600378821,3.80920392,3354.4,3354.2,0.29867]
[1735600379218,0.29867,3354.4,3354.2,0.29867]
[1735600379419,5.0542,3354.5,3354.3,0.29866]
[1735600379420,3.50646,3354.5,3354.3,0.29866]
[1735600379622,5.46491429,3354.5,3353.8,0.29871]
[1735600379814,0.2987,3354.0,3353.8,1.16651]
[1735600380014,0.2987,3354.0,3353.9,0.2987]
[1735600381216,0.9106,3354.3,3353.8,1.16651]
[1735600381416,0.2987,3353.9,3353.8,1.16651]
[1735600381821,0.9106,3354.3,3353.8,1.16651]
[1735600381822,0.9106,3354.3,3353.8,0.8678]
[1735600382023,0.2987,3354.0,3353.8,1.16651]
[1735600382321,0.2987,3353.9,3353.8,0.8678]
[1735600382726,0.2987,3353.9,3353.8,1.16651]
[1735600383125,0.9106,3354.3,3353.8,1.16651]
[1735600383322,0.2987,3354.0,3353.8,1.16651]
[1735600383625,0.9106,3354.3,3353.8,0.8678]
[1735600383825,0.29869,3354.1,3353.9,0.2987]
[1735600384028,0.2987,3354.0,3353.9,0.2987]
[1735600384339,0.2987,3353.9,3353.7,0.8854]
[1735600384626,3.00388429,3353.9,3353.3,1.8151]
[1735600384924,0.29873,3353.6,3353.4,41.09875]
[1735600385928,0.29874,3353.5,3353.4,40.8]
[1735600386527,0.9156,3353.8,3353.4,40.8]
[1735600386721,0.29874,3353.6,3353.5,0.29874]
[1735600387225,0.9156,3353.8,3353.4,40.8]
[1735600387424,3.5065,3354.0,3353.8,0.2987]
[1735600388517,0.2987,3353.9,3353.4,40.8]
[1735600388720,3.2078,3354.0,3353.4,40.8]
[1735600388920,0.29872,3353.8,3353.4,40.8]
[1735600389224,0.29872,3353.8,3353.7,0.29872]
[1735600389626,3.2078,3354.0,3353.4,40.8]
[1735600389927,0.29873,3353.6,3353.4,0.29874]
[1735600390926,0.29872,3353.7,3353.5,0.29874]
[1735600391427,0.29872,3353.7,3353.5,0.29873]
[1735600392129,0.29875,3353.4,3353.3,41.7343]
[1735600392426,2.25711429,3353.6,3353.2,3.2078]
[1735600392629,0.29877,3353.2,3353.1,0.9572]
[1735600392931,0.29877,3353.2,3353.1,41.7572]
[1735600395827,0.29875,3353.4,3353.2,0.29876]
[1735600396033,0.29875,3353.5,3353.3,0.29875]
[1735600396231,3.2078,3353.6,3353.1,41.7572]
[1735600396232,3.2078,3353.6,3353.5,0.29874]
[1735600396727,3.50653,3353.6,3353.5,0.29874]
[1735600397029,3.2078,3353.6,3353.5,41.09874]
[1735600398025,3.2078,3353.6,3353.4,0.29874]
[1735600398333,0.29874,3353.5,3353.4,0.29874]
[1735600398533,0.29874,3353.5,3353.4,41.09874]
[1735600399034,3.50654,3353.6,3353.4,0.29874]
[1735600399426,3.50654,3353.6,3353.5,40.8]
[1735600400230,3.2078,3353.6,3353.5,41.09874]
[1735600400432,3.2078,3353.6,3353.5,0.29874]
[1735600402033,3.50653,3353.6,3353.5,0.29874]
[1735600402229,3.2078,3353.6,3353.5,0.29874]
[1735600402528,3.50654,3353.6,3353.4,0.29874]
[1735600402835,3.50653,3353.6,3353.4,0.29874]
[1735600403934,3.50653,3353.6,3353.2,0.8677]
[1735600403935,3.2078,3353.6,3353.2,0.8677]
[1735600404134,2.25711429,3353.4,3353.1,7.01886194]
[1735600404434,3.2078,3353.2,3352.9,8.59396785]
[1735600404631,0.2988,3352.8,3352.7,2.79426029]
[1735600404932,3.5066,3352.8,3352.7,2.16976029]
[1735600405139,10.76371429,3352.8,3352.7,0.78413029]
[1735600405534,0.595,3352.7,3352.4,18.84147879]
[1735600405734,0.29891,3351.7,3351.5,0.29891]
[1735600405934,3.2078,3351.9,3351.5,0.29891]
[1735600406135,0.29891,3351.6,3351.3,1.811]
[1735600406337,3.2078,3351.9,3351.5,0.29892]
[1735600406534,3.2078,3351.9,3351.3,1.811]
[1735600406735,0.29889,3351.8,3351.5,0.29891]
[1735600406931,3.50669,3351.9,3351.5,0.29891]
[1735600407237,3.50669,3351.9,3351.6,0.2989]
[1735600407634,3.2078,3351.9,3351.3,1.811]
[1735600407830,3.2078,3351.9,3351.7,0.2989]
[1735600408234,3.50668,3351.9,3351.6,0.2989]
[1735600408834,3.2078,3351.9,3351.7,0.2989]
[1735600409934,0.29888,3352.0,3351.7,0.2989]
[1735600410135,3.2078,3351.9,3351.7,0.2989]
[1735600410343,3.2078,3351.9,3351.8,0.29889]
[1735600410637,0.29887,3352.1,3351.9,0.29888]
[1735600411038,5.46491429,3352.3,3351.8,40.8]
[1735600411234,0.29888,3351.9,3351.8,40.8]
[1735600411444,5.46491429,3352.3,3351.8,40.8]
[1735600411445,0.29888,3352.0,3351.8,40.8]
[1735600411738,0.29885,3352.2,3351.9,0.29888]
[1735600411937,5.46491429,3352.3,3351.9,0.29888]
[1735600412134,5.46491429,3352.3,3351.3,2.55834]
[1735600412135,0.29891,3351.6,3351.3,1.811]
[1735600412338,0.29892,3351.6,3351.4,0.29892]
[1735600412538,3.2078,3351.9,3351.3,1.811]
[1735600412739,3.50664,3352.4,3352.2,0.29885]
[1735600412940,3.2078,3352.4,3351.6,3.2078]
[1735600413135,0.29888,3352.0,3351.7,0.29889]
[1735600413335,0.29888,3352.0,3351.6,3.2078]
[1735600413640,0.29888,3352.0,3351.4,40.8]
[1735600413641,2.3422818,3352.3,3351.4,40.8]
[1735600413845,0.29886,3352.2,3352.0,0.29887]
[1735600414037,0.29886,3352.2,3352.1,0.8966]
[1735600414730,2.25711429,3352.6,3352.1,0.8966]
[1735600414731,6.72122271,3352.9,3352.4,0.29884]
[1735600414935,6.72122271,3352.9,3352.7,0.29881]
[1735600414936,2.33595884,3352.8,3352.7,0.29881]
[1735600415332,2.33595884,3352.8,3352.7,41.09881]
[1735600416542,6.72122271,3352.9,3352.7,41.09881]
[1735600416543,3.2078,3352.9,3352.7,40.8]
[1735600416740,3.2078,3352.9,3352.8,0.2988]
[1735600417944,3.2078,3352.9,3352.8,1.2254]
[1735600423566,3.51342271,3354.0,3352.8,9.1344]
[1735600423859,3.51342271,3354.0,3353.9,0.2987]
[1735600424059,3.51342271,3354.0,3353.9,3.5065]
[1735600424959,2.06132271,3354.0,3353.9,3.5065]
[1735600425164,0.50132271,3354.0,3353.9,3.5065]
[1735600425764,0.29865,3354.6,3354.2,0.29867]
[1735600426061,0.29865,3354.6,3354.3,0.29867]
[1735600426458,0.8838,3354.9,3353.9,3.2078]
[1735600426660,0.29867,3354.3,3354.0,0.29869]
[1735600428160,0.29869,3354.0,3353.9,3.2078]
[1735600428364,0.8551,3354.5,3353.4,1.7788]
[1735600428365,0.29874,3353.5,3353.4,1.7788]
[1735600428562,0.29875,3353.4,3353.0,0.29877]
[1735600428769,0.29876,3353.3,3353.0,0.29878]
[1735600429066,1.15325,3353.4,3353.0,0.29878]
[1735600429272,0.29876,3353.3,3353.0,0.29878]
[1735600429658,0.8545,3353.4,3352.9,4.0999]
[1735600430061,0.8545,3353.4,3353.2,0.29876]
[1735600431468,0.8545,3353.4,3352.9,4.0999]
[1735600431665,0.8545,3353.4,3353.3,0.29875]
[1735600432266,1.272,3354.0,3353.1,2.25711429]
[1735600432469,2.25711429,3354.7,3353.0,0.74696]
[1735600432470,4.9709,3354.5,3353.8,0.29871]
[1735600432767,4.9709,3354.5,3353.7,3.50651]
[1735600432768,0.2987,3353.9,3353.7,3.50651]
[1735600433068,4.9709,3354.5,3353.7,3.2078]
[1735600433367,4.9709,3354.5,3353.9,0.29869]
[1735600433368,0.29869,3354.1,3353.9,0.29869]
[1735600433667,0.29869,3354.1,3354.0,0.29869]
[1735600434669,4.9709,3354.5,3354.0,0.29869]
[1735600434872,4.9709,3354.5,3353.5,0.8779]
[1735600434873,1.7631,3354.5,3354.1,3.2078]
[1735600435062,0.29866,3354.4,3354.3,0.29866]
[1735600435263,1.7631,3354.5,3354.3,0.29866]
[1735600435468,0.29866,3354.4,3354.3,0.29866]
[1735600436274,2.06175,3354.5,3354.2,0.29868]
[1735600436566,0.29866,3354.4,3354.3,0.29866]
[1735600438367,1.7631,3354.5,3354.1,3.2078]
[1735600438368,0.29868,3354.2,3354.1,3.2078]
[1735600447581,0.29868,3354.2,3353.9,0.2987]
[1735600447781,0.29868,3354.2,3354.0,3.2078]
[1735600448681,0.29868,3354.1,3354.0,3.2078]
[1735600448880,0.29868,3354.2,3354.0,3.50649]
[1735600452079,1.7631,3354.5,3354.4,0.29866]
[1735600452681,0.8663,3354.5,3354.4,0.29866]
[1735600453888,3.2078,3354.7,3354.6,0.29864]
[1735600454488,3.50643,3354.7,3354.6,0.29864]
[1735600456996,0.29863,3354.7,3354.6,0.29864]
[1735600457998,0.29865,3354.6,3354.5,0.29864]
[1735600458692,3.2078,3354.7,3354.2,1.6634]
[1735600458888,0.29867,3354.4,3354.3,0.29866]
[1735600459693,0.29868,3354.1,3354.0,3.50649]
[1735600459994,0.29868,3354.1,3354.0,3.2078]
[1735600460790,0.29868,3354.1,3354.0,3.50649]
[1735600462492,0.29868,3354.1,3354.0,3.2078]
[1735600464196,3.2078,3354.7,3354.0,3.2078]
[1735600464489,0.29866,3354.4,3354.1,0.8351]
[1735600464696,0.29866,3354.4,3354.3,0.29867]
[1735600464890,0.29865,3354.6,3354.2,0.29868]
[1735600465100,0.29865,3354.6,3354.4,0.29865]
[1735600465595,0.29865,3354.5,3354.4,0.29865]
[1735600468191,0.29864,3354.7,3354.6,0.29863]
[1735600474005,0.29864,3354.6,3354.5,1.14774]
[1735600475298,0.29865,3354.5,3354.4,3.2078]
[1735600475599,0.29867,3354.2,3354.1,5.50939014]
[1735600475799,0.29867,3354.2,3354.1,4.66829014]
[1735600476902,4.90713519,3354.4,3353.9,3.5065]
[1735600477102,0.29869,3354.0,3353.9,3.2078]
[1735600477498,0.29868,3354.2,3354.1,0.29868]
[1735600478300,0.29869,3354.1,3354.0,0.29869]
[1735600478507,0.7749,3354.3,3353.9,3.2078]
[1735600478705,0.29869,3354.0,3353.9,3.5065]
[1735600480199,0.29869,3354.0,3353.9,8.17479014]